fUSD/lending_fUSD_20260224
["ID","MTS","AMOUNT","RATE_DAILY","PERIOD"]
[406550044,1771933848804,-11053.13,0.000451,14]
[406550045,1771933848814,-350.0,0.000451,5]
[406550046,1771933848822,-2000.0,0.000452,2]
[406550047,1771933848831,-150.0,0.00045205,120]
[406550048,1771933848840,-150.0,0.00045205,120]
[406550049,1771933848849,-500.0,0.00045205,2]
[406550050,1771933848858,-500.0,0.00045205,2]
[406550051,1771933848867,-500.0,0.00045205,2]
[406550052,1771933848876,-500.0,0.00045205,2]
[406550053,1771933848885,-500.0,0.00045205,2]
[406550054,1771933848894,-500.0,0.00045205,2]
[406550055,1771933848904,-500.0,0.00045205,2]
[406550056,1771933848913,-500.0,0.00045205,2]
[406550057,1771933848922,-500.0,0.00045205,2]
[406550058,1771933848931,-500.0,0.00045205,2]
[406550059,1771933848941,-500.0,0.00045205,2]
[406550060,1771933848953,-500.0,0.00045205,2]
[406550061,1771933848962,-505.51103944,0.00045205,2]
[406550062,1771933848972,-150.76821537,0.0004526,2]
[406550063,1771933848981,-350.0,0.000454,7]
[406550064,1771933848990,-150.69800173,0.0004544,30]
[406550065,1771933848999,-5822.04238244,0.00045447,2]
[406550066,1771933849009,-839.4216491,0.00045447,2]
[406550067,1771933849018,-227.19109047,0.00045475,20]
[406550068,1771933849027,-600.0,0.00045479,120]
[406550069,1771933849037,-400.0,0.000455,16]
[406550070,1771933849047,-1339.0,0.00045527,2]
[406550071,1771933849056,-150.0,0.00045534,30]
[406550072,1771933849065,-159.10086542,0.00045534,30]
[406550073,1771933849075,-150.0,0.00045534,30]
[406550074,1771933849084,-154.88665151,0.00045534,30]
[406550075,1771933849093,-230.5825631,0.0004554,30]
[406550076,1771933849103,-151.0,0.0004554,30]
[406550077,1771933849112,-747.0,0.0004554,30]
[406550078,1771933849120,-734.0,0.0004554,30]
[406550079,1771933849129,-734.0,0.0004554,30]
[406550080,1771933849139,-150.0,0.0004554,2]
[406550081,1771933849148,-177.37633225,0.0004554,2]
[406550082,1771933849158,-300.0,0.00045546,30]
[406550083,1771933849167,-666.0,0.00045546,30]
[406550084,1771933849177,-300.0,0.00045546,30]
[406550085,1771933849186,-666.0,0.00045546,30]
[406550086,1771933849195,-300.0,0.00045546,30]
[406550087,1771933849204,-151.0,0.00045547,120]
[406550088,1771933849214,-151.0,0.00045547,120]
[406550089,1771933849223,-151.0,0.00045547,120]
[406550090,1771933849232,-151.0,0.00045547,120]
[406550091,1771933849241,-167.200014,0.00045547,120]
[406550092,1771933849250,-787.713897,0.00045547,28]
[406550093,1771933849259,-787.713897,0.00045547,28]
[406550094,1771933849269,-787.713897,0.00045547,28]
[406550095,1771933849278,-787.713897,0.00045547,28]
[406550096,1771933849287,-787.713897,0.00045547,28]
[406550097,1771933849296,-787.713897,0.00045547,28]
[406550098,1771933849305,-787.713897,0.00045547,28]
[406550099,1771933849315,-787.713897,0.00045547,28]
[406550100,1771933849324,-787.713897,0.00045547,28]
[406550101,1771933849334,-787.713897,0.00045547,28]
[406550102,1771933849346,-787.713897,0.00045547,28]
[406550103,1771933849355,-787.713897,0.00045547,28]
[406550104,1771933849365,-787.713897,0.00045547,28]
[406550105,1771933849374,-787.713897,0.00045547,28]
[406550106,1771933849383,-787.713897,0.00045547,28]
[406550107,1771933849393,-787.713895,0.00045547,28]
[406550108,1771933849402,-169.41,0.00045547,120]
[406550109,1771933849414,-993.60630424,0.00045547,120]
[406550110,1771933849423,-325153.4455616,0.00045547,56]
[406550111,1771933849432,-259038.56696953,0.00045547,10]
[406550112,1771933849670,-195462.56766487,0.00045547,10]
[406550113,1771933849762,223.39856921,0.00010142,2]
[406550114,1771933850158,-920.0,0.00030527,2]
[406550115,1771933850168,-5127.93996353,0.00045547,10]
[406550116,1771933850180,-491790.00918127,0.00045547,10]
[406550117,1771933850190,-4738415.77498645,0.00045547,10]
[406550118,1771933851984,-223.39856921,0.00045447,2]
[406550119,1771933851994,-1762.31980553,0.00045547,10]
[406550120,1771933852005,-315.2719992,0.00045547,10]
[406550127,1771933866261,195.0,0.00016611,120]
[406550128,1771933867693,600.0,0.00016611,120]
[406550134,1771933892472,10000.01,0.00010142,2]
[406550135,1771933892493,10000.01,0.00010142,2]
[406550136,1771933892513,5000.01,0.00010142,2]
[406550137,1771933892533,5000.01,0.00010142,2]
[406550138,1771933892552,453.3532,0.00010142,2]
[406550140,1771933907342,10000.01,0.00010141,2]
[406550141,1771933907373,10000.01,0.00010141,2]
[406550142,1771933907400,10000.01,0.00010141,2]
[406550143,1771933907426,10000.01,0.00010141,2]
[406550144,1771933907455,10000.01,0.00010141,2]
[406550145,1771933914653,-668.41387287,0.00010141,2]
[406550146,1771933914773,-5000.01,0.00010141,2]
[406550147,1771933914909,-5000.01,0.00010141,2]
[406550148,1771933916949,-5000.01,0.00010141,2]
[406550149,1771933917069,-5000.01,0.00010141,2]
[406550150,1771933917421,-5000.01,0.00010141,2]
[406550151,1771933917445,-5000.01,0.00010141,2]
[406550152,1771933917518,-5000.01,0.00010141,2]
[406550153,1771933917574,-5000.01,0.00010141,2]
[406550154,1771933919986,-663.84,0.00010131,2]
[406550155,1771933920019,-3672.33,0.00010141,2]
[406550156,1771933920096,-5000.01,0.00010141,2]
[406550157,1771933927442,5000.01,7.945e-05,2]
[406550163,1771933987953,5000.01,7.945e-05,2]
[406550170,1771934041478,6880.814836,0.00010064,2]
[406550172,1771934140388,2323.99349219,0.00010015,2]
[406550173,1771934176727,420.13251574,0.00010042,2]
[406550174,1771934191768,177.47,9.5e-05,2]
[406550175,1771934267432,614.5991506,9.942e-05,2]
[406550177,1771934342968,155.746908,9.895e-05,2]
[406550178,1771934343391,4229.6639414,9.941e-05,2]
[406550179,1771934343411,2480.55218057,9.941e-05,2]
[406550204,1771934383593,300.64393504,9.941e-05,2]
[406550211,1771934397655,409.73276706,9.941e-05,2]
[406550212,1771934404024,308.51235904,9.141e-05,2]
[406550213,1771934414616,2000.0,9.6e-05,3]
[406550214,1771934416713,4100.0,9.7e-05,3]
[406550215,1771934419845,6200.0,9.8e-05,3]
[406550216,1771934428815,8300.0,9.9e-05,3]
[406550217,1771934432207,10400.0,0.0001,3]
[406550220,1771934463546,1500.56875829,9.941e-05,2]
[406550221,1771934463568,2972.90865635,9.941e-05,2]
[406550222,1771934469828,217.17,9.64e-05,2]
[406550230,1771934528009,273.15517804,9.941e-05,2]
[406550236,1771934543914,4509.68482196,9.941e-05,2]
[406550237,1771934588007,5000.01,7.945e-05,2]
[406550263,1771934693988,4286.4,9.323e-05,2]
[406550264,1771934722281,26325.32623809,9.279e-05,2]
[406550265,1771934738934,-2025.21175181,9.279e-05,2]
[406550266,1771934739025,-356.13972,9.279e-05,2]
[406550269,1771934739132,-1255.57724603,9.279e-05,2]
[406550270,1771934739204,-522.40688984,9.279e-05,2]
[406550271,1771934739297,-722.8955016,9.279e-05,2]
[406550272,1771934739410,-2113.28369222,9.279e-05,2]
[406550273,1771934739502,-283.1512657,9.279e-05,2]
[406550274,1771934739689,-173.5810657,9.279e-05,2]
[406550282,1771934844307,-150.0,9.278e-05,2]
[406550283,1771934844329,-300.0,9.278e-05,2]
[406550284,1771934844351,-152.06764086,9.278e-05,2]
[406550285,1771934844372,-9397.93235914,9.279e-05,2]
[406550286,1771934845859,-10000.0,9.279e-05,2]
[406550287,1771934846851,-10000.0,9.279e-05,2]
[406550288,1771934847782,-10000.0,9.279e-05,2]
[406550289,1771934848710,-10000.0,9.279e-05,2]
[406550290,1771934849697,-6796.11426987,9.279e-05,2]
[406550291,1771934849718,-1000.0,9.504e-05,2]
[406550292,1771934849739,-250.0,9.722e-05,2]
[406550293,1771934849762,-1953.88573013,9.841e-05,2]
[406550294,1771934850997,-10000.0,9.841e-05,2]
[406550295,1771934852173,-10000.0,9.841e-05,2]
[406550296,1771934853377,-10000.0,9.841e-05,2]
[406550297,1771934854579,-10000.0,9.841e-05,2]
[406550298,1771934855522,-10000.0,9.841e-05,2]
[406550299,1771934856325,600.0,9.6e-05,3]
[406550300,1771934856613,-10000.0,9.841e-05,2]
[406550301,1771934857585,-10000.0,9.841e-05,2]
[406550302,1771934858454,1200.0,9.7e-05,3]
[406550303,1771934860559,1800.0,9.8e-05,3]
[406550304,1771934862656,2400.0,9.9e-05,3]
[406550305,1771934862768,-2000.0,9.841e-05,2]
[406550306,1771934864744,3100.0,0.0001,3]
[406550307,1771934871271,166.66,9.524e-05,2]
[406550308,1771934882910,2754.33559866,9.524e-05,2]
[406550309,1771934883023,5138.09436464,9.524e-05,2]
[406550310,1771934883217,546.65560534,9.524e-05,2]
[406550311,1771934883247,1279.02931103,9.524e-05,2]
[406550313,1771934909486,-166.66,9.838e-05,2]
[406550314,1771934909510,-300.0,9.84e-05,2]
[406550315,1771934909534,-1033.34,9.841e-05,2]
[406550316,1771934938308,115.23512033,9.222e-05,2]
[406550317,1771934938331,4237.53487967,9.222e-05,2]
[406550321,1771935031238,-203.0,9.84e-05,2]
[406550322,1771935031248,-150.0,9.84e-05,2]
[406550323,1771935031258,-300.0,9.84e-05,2]
[406550324,1771935031267,-300.0,9.84e-05,2]
[406550325,1771935031276,-300.0,9.84e-05,2]
[406550326,1771935031285,-1200.0,9.84e-05,2]
[406550327,1771935031294,-300.0,9.84e-05,2]
[406550328,1771935031303,-231.0,9.84e-05,2]
[406550329,1771935031312,-250.0,9.84e-05,2]
[406550330,1771935031321,-4145.63129492,9.841e-05,2]
[406550331,1771935031333,-2355.45218517,9.841e-05,2]
[406550332,1771935031344,-751.72228898,9.841e-05,2]
[406550333,1771935031379,-9286.69525022,9.841e-05,2]
[406550334,1771935031415,-1900.0,9.841e-05,2]
[406550335,1771935031426,-46067.76739508,9.841e-05,2]
[406550336,1771935031437,-451.0,9.841e-05,2]
[406550337,1771935031447,-2815.94946393,9.841e-05,2]
[406550338,1771935031459,-3657.20000004,9.841e-05,2]
[406550340,1771935031482,-71735.85423331,9.841e-05,2]
[406550341,1771935031493,-897.6569597,9.841e-05,2]
[406550342,1771935031504,-454.55387908,9.841e-05,2]
[406550351,1771935037317,-3280493.29131944,9.841e-05,2]
[406550352,1771935037556,-4132.3953,9.841e-05,2]
[406550353,1771935037566,-23114.8184,9.841e-05,2]
[406550354,1771935037576,-2500.0,9.841e-05,2]
[406550355,1771935037585,-182.10345204,9.841e-05,2]
[406550357,1771935037594,-2982.31827642,9.841e-05,2]
[406550359,1771935037603,-500.0,9.94e-05,2]
[406550361,1771935037611,-500.0,9.94e-05,2]
[406550363,1771935037621,-500.0,9.94e-05,2]
[406550365,1771935037630,-536.00091674,9.94e-05,2]
[406550367,1771935037638,-500.0,9.94e-05,2]
[406550369,1771935037647,-500.0,9.94e-05,2]
[406550371,1771935037658,-500.0,9.94e-05,2]
[406550373,1771935037668,-500.0,9.94e-05,2]
[406550375,1771935037677,-500.0,9.94e-05,2]
[406550377,1771935037686,-500.0,9.995e-05,2]
[406550379,1771935037696,-292.84,0.0001,2]
[406550381,1771935037706,-49999.99,0.0001,2]
[406550383,1771935037722,-3838.62,0.0001,2]
[406550385,1771935037737,-280.08834382,0.0001,2]
[406550387,1771935037755,-206.0,0.0001,2]
[406550389,1771935037763,-206.0,0.0001,2]
[406550391,1771935037772,-155.42021261,0.0001,2]
[406550393,1771935037781,-155.42021261,0.00010013,2]
[406550395,1771935037790,-35000.07,0.00010023,2]
[406550397,1771935037799,-4999.99,0.00010023,2]
[406550399,1771935037808,-9999.99,0.00010023,2]
[406550401,1771935037816,-14657.05,0.00010023,2]
[406550403,1771935037825,-1413.37,0.00010023,2]
[406550405,1771935037834,-1613.61,0.00010023,2]
[406550407,1771935037843,-9999.99,0.00010023,2]
[406550409,1771935037853,-150.99,0.00010023,2]
[406550411,1771935037865,-9999.99,0.00010023,2]
[406550413,1771935037883,-3571.95,0.00010023,2]
[406550415,1771935037902,-150.99,0.00010023,2]
[406550417,1771935037911,-9999.99,0.00010023,2]
[406550419,1771935037920,-509.44,0.00010023,2]
[406550421,1771935037930,-9999.99,0.00010023,2]
[406550423,1771935037939,-9999.99,0.00010023,2]
[406550425,1771935037948,-306.28,0.00010023,2]
[406550427,1771935037958,-516.03,0.00010023,2]
[406550429,1771935037967,-299.99,0.00010023,2]
[406550431,1771935037976,-5919.05,0.00010023,2]
[406550433,1771935037985,-499.99,0.00010023,2]
[406550435,1771935037994,-999.99,0.00010023,2]
[406550437,1771935038003,-1185.85,0.00010023,2]
[406550439,1771935038013,-500.0,0.00010023,2]
[406550441,1771935038022,-1669.319,0.0001004,2]
[406550443,1771935038032,-182.118,0.0001004,2]
[406550445,1771935038042,-10000.0,0.00010041,2]
[406550447,1771935038054,-19912.52,0.0001011,2]
[406550449,1771935038063,-500.0,0.00010116,2]
[406550451,1771935038073,-151.0,0.00010134,2]
[406550453,1771935038083,-151.0,0.00010134,2]
[406550455,1771935038092,-151.0,0.00010134,2]
[406550457,1771935038101,-151.0,0.00010134,2]
[406550459,1771935038110,-151.0,0.00010134,2]
[406550461,1771935038119,-151.0,0.00010134,2]
[406550463,1771935038128,-151.0,0.00010134,2]
[406550465,1771935038137,-151.0,0.00010134,2]
[406550467,1771935038146,-151.0,0.00010134,2]
[406550469,1771935038156,-151.0,0.00010134,2]
[406550471,1771935038165,-151.0,0.00010134,2]
[406550474,1771935038174,-151.0,0.00010134,2]
[406550476,1771935038188,-151.0,0.00010134,2]
[406550478,1771935038197,-151.0,0.00010134,2]
[406550480,1771935038206,-151.0,0.00010134,2]
[406550482,1771935038215,-151.0,0.00010134,2]
[406550484,1771935038225,-151.0,0.00010134,2]
[406550486,1771935038235,-151.0,0.00010134,2]
[406550488,1771935038244,-151.0,0.00010134,2]
[406550490,1771935038253,-151.0,0.00010134,2]
[406550492,1771935038263,-151.0,0.00010141,2]
[406550494,1771935038272,-230.5825631,0.00010141,2]
[406550496,1771935038280,-1000.0,0.00010142,2]
[406550498,1771935038289,-330247.4257,0.00010142,2]
[406550499,1771935038298,-1205.9102,0.00010142,2]
[406550500,1771935038307,-2273.707,0.00010142,2]
[406550501,1771935038317,-183.0566,0.00010142,2]
[406550502,1771935038326,-166.66,0.00010153,2]
[406550503,1771935038335,-193.0,0.00010206,2]
[406550504,1771935038344,-422.0,0.00010212,2]
[406550505,1771935038358,-449.0,0.00010233,2]
[406550506,1771935038367,-171.0,0.00010253,2]
[406550507,1771935038378,-366.0,0.00010274,2]
[406550508,1771935038391,-358.0,0.00010294,2]
[406550509,1771935038400,-500.0,0.00010297,2]
[406550510,1771935038409,-1910.0,0.00010305,2]
[406550511,1771935038418,-380.0,0.00010314,2]
[406550512,1771935038428,-303.0,0.00010335,2]
[406550513,1771935038437,-782.0,0.00010367,2]
[406550514,1771935038446,-962.0,0.00010387,2]
[406550515,1771935038455,-1914.0,0.00010408,2]
[406550516,1771935038465,-1694.0,0.00010429,2]
[406550517,1771935038474,-207.60272737,0.00010463,2]
[406550518,1771935038483,-166.66,0.00010467,2]
[406550519,1771935038492,-500.0,0.00010571,2]
[406550520,1771935038501,-176.198522,0.00010596,2]
[406550521,1771935038510,-1000.0,0.00010692,2]
[406550522,1771935038519,-166.66,0.00010782,2]
[406550523,1771935038529,-500.0,0.000108,2]
[406550524,1771935038539,-501.2919534,0.000108,2]
[406550525,1771935038548,-500.0,0.000108,2]
[406550526,1771935038557,-688.7080466,0.000108,2]
[406550527,1771935038567,-500.0,0.000108,2]
[406550528,1771935038577,-500.0,0.000108,2]
[406550529,1771935038589,-500.0,0.000108,2]
[406550530,1771935038598,-500.0,0.000108,2]
[406550531,1771935038608,-500.0,0.000108,2]
[406550532,1771935038617,-500.0,0.000108,2]
[406550533,1771935038627,-500.0,0.000108,2]
[406550534,1771935038637,-500.0,0.000108,2]
[406550535,1771935038646,-500.0,0.000108,2]
[406550536,1771935038656,-500.0,0.000108,2]
[406550537,1771935038668,-823.91748752,0.000108,2]
[406550538,1771935038677,-314.06541696,0.00010822,2]
[406550539,1771935038686,-260.07067144,0.00010822,2]
[406550540,1771935038696,-255.0,0.00010824,2]
[406550541,1771935038706,-310.0,0.00010824,2]
[406550542,1771935038715,-420.0,0.00010824,2]
[406550543,1771935038725,-1680.0,0.00010824,2]
[406550544,1771935038736,-250.0,0.00010824,2]
[406550545,1771935038746,-500.0,0.00010845,2]
[406550546,1771935038755,-4697.42439604,0.000109,2]
[406550547,1771935038764,-166.66,0.00011096,2]
[406550548,1771935038773,-27376.86086096,0.00011099,2]
[406550549,1771935038782,-500.0,0.00011119,2]
[406550550,1771935038791,-150.0,0.00011232,2]
[406550551,1771935038801,-271100.87793748,0.00011241,2]
[406550552,1771935038810,-500.0,0.00011393,2]
[406550553,1771935038819,-296.09,0.00011604,2]
[406550554,1771935038829,-500.0,0.00011667,2]
[406550555,1771935038838,-365.27,0.0001177,2]
[406550556,1771935038848,-1000.0,0.0001188,2]
[406550557,1771935038857,-433.0,0.00011906,2]
[406550558,1771935038867,-587.0,0.00011906,2]
[406550559,1771935038877,-2351.0,0.00011906,2]
[406550560,1771935038886,-500.0,0.00011941,2]
[406550561,1771935038895,-2190.8,0.00012153,2]
[406550562,1771935038904,-500.0,0.00012215,2]
[406550563,1771935038913,-500.0,0.00012489,2]
[406550564,1771935038922,-500.0,0.00012763,2]
[406550565,1771935038931,-27376.86086096,0.00012948,2]
[406550566,1771935038940,-292.84,0.00013,2]
[406550567,1771935038950,-1166.38653142,0.00013011,2]
[406550568,1771935038970,-500.0,0.00013037,2]
[406550569,1771935038979,-1000.0,0.00013068,2]
[406550570,1771935038989,-500.0,0.00013073,2]
[406550571,1771935038998,-500.0,0.00013073,2]
[406550572,1771935039008,-500.0,0.00013073,2]
[406550573,1771935039018,-500.0,0.00013073,2]
[406550574,1771935039028,-500.0,0.00013073,2]
[406550575,1771935039037,-500.0,0.00013073,2]
[406550576,1771935039047,-500.0,0.00013073,2]
[406550577,1771935039056,-500.0,0.00013073,2]
[406550578,1771935039065,-500.0,0.00013073,2]
[406550579,1771935039075,-500.0,0.00013073,2]
[406550580,1771935039084,-500.0,0.00013073,2]
[406550581,1771935039093,-500.0,0.00013073,2]
[406550582,1771935039102,-736.0,0.00013096,2]
[406550583,1771935039112,-3292.0,0.00013096,2]
[406550585,1771935039122,-823.0,0.00013096,2]
[406550586,1771935039131,-497.3794907,0.00013101,2]
[406550588,1771935039140,-500.0,0.00013101,2]
[406550589,1771935039150,-500.0,0.00013101,2]
[406550590,1771935039163,-500.0,0.00013101,2]
[406550591,1771935039172,-500.0,0.00013101,2]
[406550592,1771935039182,-500.0,0.00013101,2]
[406550593,1771935039192,-500.0,0.00013101,2]
[406550594,1771935039202,-500.0,0.00013101,2]
[406550595,1771935039211,-500.0,0.00013101,2]
[406550596,1771935039221,-500.0,0.00013101,2]
[406550597,1771935039231,-500.0,0.00013101,2]
[406550598,1771935039241,-800.0,0.00013101,2]
[406550599,1771935039250,-500.0,0.00013101,2]
[406550600,1771935039260,-500.0,0.00013101,2]
[406550601,1771935039269,-500.0,0.00013101,2]
[406550602,1771935039279,-500.0,0.00013101,2]
[406550603,1771935039289,-500.0,0.00013101,2]
[406550604,1771935039299,-500.0,0.00013101,2]
[406550605,1771935039309,-500.0,0.00013101,2]
[406550606,1771935039319,-500.0,0.00013101,2]
[406550607,1771935039329,-500.0,0.00013101,2]
[406550608,1771935039340,-500.0,0.00013101,2]
[406550609,1771935039354,-500.0,0.00013101,2]
[406550610,1771935039364,-500.0,0.00013101,2]
[406550611,1771935039374,-500.0,0.00013101,2]
[406550612,1771935039384,-150.0,0.00013184,2]
[406550613,1771935039394,-150.0,0.00013185,2]
[406550614,1771935039404,-150.0,0.00013186,2]
[406550615,1771935039413,-150.0,0.00013187,2]
[406550616,1771935039423,-150.0,0.00013188,2]
[406550617,1771935039433,-150.0,0.00013189,2]
[406550618,1771935039445,-150.0,0.0001319,2]
[406550619,1771935039455,-150.0,0.00013191,2]
[406550620,1771935039464,-150.0,0.00013192,2]
[406550621,1771935039474,-150.0,0.00013193,2]
[406550622,1771935039484,-150.0,0.00013194,2]
[406550623,1771935039494,-150.0,0.00013195,2]
[406550624,1771935039504,-206.290511,0.00013196,2]
[406550625,1771935039514,-500.0,0.00013311,2]
[406550626,1771935039524,-1162.81677664,0.00013457,2]
[406550627,1771935039534,-500.0,0.00013585,2]
[406550628,1771935039547,-550.01264972,0.00013621,2]
[406550629,1771935039557,-1000.0,0.00013621,2]
[406550630,1771935039568,-501.70650637,0.00013621,2]
[406550631,1771935039578,-1000.0,0.00013621,2]
[406550632,1771935039587,-1000.0,0.00013621,2]
[406550633,1771935039597,-1002.25561136,0.00013621,2]
[406550634,1771935039607,-1000.0,0.00013621,2]
[406550635,1771935039616,-501.90132287,0.00013621,2]
[406550636,1771935039625,-1000.0,0.00013621,2]
[406550637,1771935039635,-1000.0,0.00013621,2]
[406550638,1771935039644,-1000.0,0.00013621,2]
[406550639,1771935039657,-328.54094648,0.00013621,2]
[406550640,1771935039666,-500.0,0.00013698,2]
[406550641,1771935039676,-500.0,0.00013698,2]
[406550642,1771935039685,-500.0,0.00013698,2]
[406550643,1771935039697,-500.0,0.00013698,2]
[406550644,1771935039706,-507.40049193,0.00013698,2]
[406550645,1771935039716,-523.24,0.00013698,2]
[406550646,1771935039726,-523.24,0.00013698,2]
[406550647,1771935039737,-523.24,0.00013698,2]
[406550648,1771935039746,-523.24,0.00013698,2]
[406550649,1771935039756,-523.24,0.00013698,2]
[406550650,1771935039766,-523.24,0.00013698,2]
[406550651,1771935039776,-523.24,0.00013698,2]
[406550652,1771935039785,-523.24,0.00013698,2]
[406550653,1771935039795,-523.24,0.00013698,2]
[406550654,1771935039804,-523.24,0.00013698,2]
[406550655,1771935039814,-523.24,0.00013698,2]
[406550656,1771935039824,-523.24,0.00013698,2]
[406550657,1771935039834,-523.24,0.00013698,2]
[406550658,1771935039844,-523.24,0.00013698,2]
[406550659,1771935039854,-523.24,0.00013698,2]
[406550660,1771935039864,-523.24,0.00013698,2]
[406550661,1771935039873,-523.24,0.00013698,2]
[406550662,1771935039883,-523.24,0.00013698,2]
[406550663,1771935039892,-858.26,0.00013698,2]
[406550664,1771935039902,-858.26,0.00013698,2]
[406550665,1771935039911,-858.26,0.00013698,2]
[406550666,1771935039921,-858.26,0.00013698,2]
[406550667,1771935039930,-858.26,0.00013698,2]
[406550668,1771935039943,-858.26,0.00013698,2]
[406550669,1771935039952,-858.26,0.00013698,2]
[406550670,1771935039962,-858.26,0.00013698,2]
[406550671,1771935039971,-858.26,0.00013698,2]
[406550672,1771935039981,-858.26,0.00013698,2]
[406550673,1771935039990,-858.26,0.00013698,2]
[406550674,1771935040000,-858.26,0.00013698,2]
[406550675,1771935040010,-858.26,0.00013698,2]
[406550676,1771935040019,-858.26,0.00013698,2]
[406550677,1771935040029,-858.26,0.00013698,2]
[406550678,1771935040039,-858.26,0.00013698,2]
[406550679,1771935040048,-858.26,0.00013698,2]
[406550680,1771935040058,-858.26,0.00013698,2]
[406550681,1771935040068,-500.0,0.00013698,2]
[406550682,1771935040077,-500.0,0.00013698,2]
[406550683,1771935040087,-500.0,0.00013698,2]
[406550684,1771935040096,-500.0,0.00013698,2]
[406550685,1771935040106,-500.0,0.00013698,2]
[406550686,1771935040115,-500.0,0.00013698,2]
[406550687,1771935040124,-500.0,0.00013698,2]
[406550688,1771935040133,-500.0,0.00013698,2]
[406550689,1771935040143,-500.0,0.00013698,2]
[406550690,1771935040152,-500.0,0.00013698,2]
[406550691,1771935040162,-500.0,0.00013698,2]
[406550692,1771935040171,-500.0,0.00013698,2]
[406550693,1771935040181,-500.0,0.00013698,2]
[406550694,1771935040191,-500.0,0.00013698,2]
[406550695,1771935040201,-425.41241493,0.00013698,2]
[406550696,1771935040212,-500.0,0.00013698,2]
[406550697,1771935040221,-500.0,0.00013698,2]
[406550698,1771935040230,-500.0,0.00013698,2]
[406550699,1771935040240,-500.0,0.00013698,2]
[406550700,1771935040249,-500.0,0.00013698,2]
[406550701,1771935040258,-500.0,0.00013698,2]
[406550702,1771935040268,-500.0,0.00013698,2]
[406550703,1771935040277,-500.0,0.00013698,2]
[406550704,1771935040286,-500.0,0.00013698,2]
[406550705,1771935040295,-500.0,0.00013698,2]
[406550706,1771935040305,-500.0,0.00013698,2]
[406550707,1771935040314,-500.0,0.00013698,2]
[406550708,1771935040323,-500.0,0.00013698,2]
[406550709,1771935040332,-500.0,0.00013698,2]
[406550710,1771935040342,-500.0,0.00013698,2]
[406550711,1771935040351,-500.0,0.00013698,2]
[406550712,1771935040361,-500.0,0.00013698,2]
[406550713,1771935040370,-500.0,0.00013698,2]
[406550714,1771935040380,-500.0,0.00013698,2]
[406550715,1771935040390,-500.0,0.00013698,2]
[406550716,1771935040399,-500.0,0.00013698,2]
[406550717,1771935040409,-500.0,0.00013698,2]
[406550718,1771935040418,-500.0,0.00013698,2]
[406550719,1771935040427,-502.16359539,0.00013698,2]
[406550720,1771935040436,-500.0,0.00013698,2]
[406550721,1771935040446,-500.0,0.00013698,2]
[406550722,1771935040455,-500.0,0.00013698,2]
[406550723,1771935040465,-500.0,0.00013698,2]
[406550724,1771935040474,-268.25985649,0.00013698,2]
[406550725,1771935040484,-549.94,0.00013698,2]
[406550726,1771935040494,-549.94,0.00013698,2]
[406550727,1771935040503,-549.94,0.00013698,2]
[406550728,1771935040512,-549.94,0.00013698,2]
[406550729,1771935040521,-549.94,0.00013698,2]
[406550730,1771935040531,-549.94,0.00013698,2]
[406550731,1771935040540,-549.94,0.00013698,2]
[406550732,1771935040549,-549.94,0.00013698,2]
[406550733,1771935040558,-549.94,0.00013698,2]